fUST/lending_fUST_20241226
["ID","MTS","AMOUNT","RATE_DAILY","PERIOD"]
[346689635,1735186238651,-329.15439509,0.0001054,2]
[346689637,1735186238663,-206.51679099,0.00010646,2]
[346689639,1735186238674,-500.0,0.00010646,2]
[346689642,1735186238687,-313.55,0.00010646,2]
[346689644,1735186238699,-162.67646491,0.0001081,2]
[346689647,1735186238716,-53.50105289,0.0001081,2]
[346689649,1735186238728,-500.0,0.00010918,2]
[346689651,1735186238739,-281.24546965,0.00010919,2]
[346689654,1735186238751,-500.0,0.00010919,2]
[346689657,1735186238764,-500.0,0.00010919,2]
[346689659,1735186238780,-500.0,0.00010919,2]
[346689661,1735186238791,-500.0,0.00010919,2]
[346689664,1735186238803,-275.75,0.00010919,2]
[346689666,1735186238817,-385.03,0.00010919,2]
[346689668,1735186238828,-2955.44,0.00010919,2]
[346689671,1735186238839,-500.0,0.0001092,2]
[346689673,1735186238850,-155.07,0.0001092,2]
[346689675,1735186238863,-500.0,0.0001092,2]
[346689677,1735186238875,-500.0,0.0001092,2]
[346689680,1735186238886,-2399.72,0.00010958,2]
[346689682,1735186238899,-744.1,0.00010999,2]
[346689684,1735186238910,-457.72816082,0.00010999,2]
[346689687,1735186238924,-42.27183918,0.00010999,2]
[346689689,1735186238934,-376.5760942,0.00010999,2]
[346689714,1735186239241,-123.4239058,0.00010999,2]
[346689715,1735186239255,-500.0,0.00010999,2]
[346689716,1735186239267,-500.0,0.00010999,2]
[346689717,1735186239281,-500.0,0.00010999,2]
[346689718,1735186239292,-500.0,0.00010999,2]
[346689719,1735186239303,-839.3560942,0.00011,2]
[346689720,1735186239317,-1160.6439058,0.00011,2]
[346689721,1735186239328,-500.0,0.0001103,2]
[346689723,1735186239339,-500.0,0.0001103,2]
[346689724,1735186239350,-336.51,0.0001103,2]
[346689725,1735186239362,-500.0,0.0001103,2]
[346689727,1735186239372,-654.9966763,0.0001108,2]
[346689729,1735186239384,-500.0,0.00011192,2]
[346689730,1735186239395,-500.0,0.00011193,2]
[346689731,1735186239405,-500.0,0.00011193,2]
[346689732,1735186239416,-500.0,0.00011193,2]
[346689733,1735186239427,-500.0,0.00011193,2]
[346689734,1735186239437,-2399.72,0.00011193,2]
[346689735,1735186239447,-2955.44,0.00011193,2]
[346689736,1735186239457,-500.0,0.00011194,2]
[346689737,1735186239471,-500.0,0.00011194,2]
[346689738,1735186239483,-500.0,0.00011194,2]
[346689739,1735186239494,-500.0,0.00011219,2]
[346689740,1735186239504,-10427.15568815,0.00011229,2]
[346689741,1735186239515,-744.1,0.00011273,2]
[346689742,1735186239527,-500.0,0.00011273,2]
[346689743,1735186239538,-500.0,0.00011273,2]
[346689744,1735186239548,-500.0,0.00011273,2]
[346689745,1735186239559,-215.99,0.00011273,2]
[346689746,1735186239570,-267.37,0.00011273,2]
[346689747,1735186239580,-500.0,0.00011304,2]
[346689748,1735186239591,-559.87,0.00011304,2]
[346689749,1735186239601,-500.0,0.00011466,2]
[346689750,1735186239612,-500.0,0.00011467,2]
[346689751,1735186239624,-213.71,0.00011467,2]
[346689752,1735186239635,-500.0,0.00011467,2]
[346689753,1735186239645,-500.0,0.00011467,2]
[346689754,1735186239810,-2399.72,0.00011467,2]
[346689755,1735186239824,-2955.44,0.00011467,2]
[346689756,1735186239833,-634.22,0.00011468,2]
[346689757,1735186239844,-254.03,0.00011468,2]
[346689758,1735186239855,-500.0,0.00011468,2]
[346689759,1735186239865,-744.1,0.00011547,2]
[346689760,1735186239875,-500.0,0.00011547,2]
[346689761,1735186239885,-500.0,0.00011547,2]
[346689762,1735186239894,-500.0,0.00011547,2]
[346689763,1735186239903,-500.0,0.00011578,2]
[346689764,1735186239912,-500.0,0.00011709,2]
[346689765,1735186239921,-287.0,0.0001171,2]
[346689766,1735186239931,-500.0,0.0001174,2]
[346689767,1735186239941,-500.0,0.00011741,2]
[346689768,1735186239950,-500.0,0.00011741,2]
[346689769,1735186239959,-500.0,0.00011741,2]
[346689770,1735186239969,-2399.72,0.00011741,2]
[346689771,1735186239979,-2955.44,0.00011741,2]
[346689772,1735186239988,-500.0,0.00011742,2]
[346689773,1735186239999,-744.1,0.00011821,2]
[346689774,1735186240009,-500.0,0.00011821,2]
[346689775,1735186240017,-500.0,0.00011821,2]
[346689776,1735186240028,-500.0,0.00011821,2]
[346689777,1735186240038,-500.0,0.00011852,2]
[346689778,1735186240047,-500.0,0.00012014,2]
[346689779,1735186240057,-500.0,0.00012015,2]
[346689780,1735186240066,-501.62544033,0.00012015,2]
[346689781,1735186240075,-500.0,0.00012015,2]
[346689782,1735186240084,-500.0,0.00012015,2]
[346689783,1735186240093,-2399.72,0.00012015,2]
[346689784,1735186240103,-2955.44,0.00012015,2]
[346689785,1735186240112,-500.0,0.00012016,2]
[346689786,1735186240121,-744.1,0.00012095,2]
[346689787,1735186240131,-500.0,0.00012095,2]
[346689788,1735186240140,-500.0,0.00012095,2]
[346689789,1735186240149,-500.0,0.00012095,2]
[346689790,1735186240159,-500.0,0.00012126,2]
[346689791,1735186240168,-500.0,0.00012288,2]
[346689792,1735186240177,-500.0,0.00012289,2]
[346689793,1735186240186,-274.6402662,0.00012289,2]
[346689794,1735186240196,-2399.72,0.00012289,2]
[346689795,1735186240206,-2955.44,0.00012289,2]
[346689796,1735186240215,-500.0,0.0001229,2]
[346689797,1735186240225,-744.1,0.00012369,2]
[346689798,1735186240234,-500.0,0.00012369,2]
[346689799,1735186240243,-500.0,0.00012369,2]
[346689800,1735186240253,-500.0,0.00012369,2]
[346689801,1735186240262,-500.0,0.000124,2]
[346689803,1735186240272,-500.0,0.00012562,2]
[346689805,1735186240281,-500.0,0.00012563,2]
[346689806,1735186240290,-500.0,0.00012563,2]
[346689807,1735186240299,-2399.72,0.00012563,2]
[346689808,1735186240309,-2955.44,0.00012563,2]
[346689809,1735186240319,-500.0,0.00012564,2]
[346689810,1735186240328,-151.0,0.000126,2]
[346689811,1735186240337,-744.1,0.00012643,2]
[346689812,1735186240347,-500.0,0.00012643,2]
[346689813,1735186240356,-500.0,0.00012643,2]
[346689814,1735186240365,-500.0,0.00012643,2]
[346689815,1735186240375,-500.0,0.00012674,2]
[346689817,1735186240384,-603.92962373,0.00012836,2]
[346689818,1735186240393,-500.0,0.00012836,2]
[346689819,1735186240402,-202.99403882,0.00012837,2]
[346689820,1735186240411,-2399.72,0.00012837,2]
[346689821,1735186240420,-2955.44,0.00012837,2]
[346689822,1735186240429,-500.0,0.00012838,2]
[346689823,1735186240438,-196.99424936,0.000129,2]
[346689824,1735186240447,-196.99424932,0.000129,2]
[346689825,1735186240456,-744.1,0.00012917,2]
[346689826,1735186240465,-500.0,0.00012917,2]
[346689827,1735186240477,-500.0,0.00012917,2]
[346689828,1735186240488,-500.0,0.00012917,2]
[346689829,1735186240497,-500.0,0.00012948,2]
[346689830,1735186240506,-196.99424932,0.00013092,2]
[346689831,1735186240515,-151.0,0.000131,2]
[346689832,1735186240526,-151.0,0.000131,2]
[346689833,1735186240535,-500.0,0.0001311,2]
[346689834,1735186240545,-2399.72,0.00013111,2]
[346689835,1735186240554,-2955.44,0.00013111,2]
[346689836,1735186240564,-500.0,0.00013112,2]
[346689837,1735186240573,-744.1,0.00013191,2]
[346689838,1735186240582,-500.0,0.00013191,2]
[346689839,1735186240592,-500.0,0.00013191,2]
[346689840,1735186240602,-461.08,0.00013191,2]
[346689841,1735186240611,-500.0,0.00013222,2]
[346689842,1735186240621,-5111.15186171,0.0001329,2]
[346689843,1735186240636,-500.0,0.00013384,2]
[346689844,1735186240646,-2399.72,0.00013385,2]
[346689846,1735186240655,-2955.44,0.00013385,2]
[346689848,1735186240663,-500.0,0.00013386,2]
[346689850,1735186240675,-744.1,0.00013465,2]
[346689851,1735186240685,-500.0,0.00013465,2]
[346689853,1735186240694,-500.0,0.00013465,2]
[346689855,1735186240705,-150.089,0.00013492,2]
[346689856,1735186240715,-150.0,0.00013492,2]
[346689857,1735186240725,-150.053,0.00013492,2]
[346689858,1735186240734,-534.0,0.00013492,2]
[346689859,1735186240744,-2355.0,0.00013492,2]
[346689860,1735186240753,-500.0,0.00013496,2]
[346689861,1735186240762,-151.0,0.000136,2]
[346689862,1735186240771,-500.0,0.00013658,2]
[346689863,1735186240789,-2399.72,0.00013659,2]
[346689864,1735186240801,-2955.44,0.00013659,2]
[346689865,1735186240812,-500.0,0.0001366,2]
[346689866,1735186240822,-159.54491909,0.00013698,2]
[346689867,1735186240832,-1009.03809577,0.00013698,2]
[346689868,1735186240842,-500.0,0.00013698,2]
[346689869,1735186240852,-500.0,0.00013698,2]
[346689870,1735186240862,-522.78,0.00013698,2]
[346689871,1735186240871,-454.8304165,0.00013699,2]
[346689872,1735186240880,-1234.953846,0.00013699,2]
[346689873,1735186240890,-10257.2596681,0.00013699,2]
[346689874,1735186240900,-500.0,0.00013699,2]
[346689875,1735186240909,-500.0,0.00013699,2]
[346689876,1735186240919,-500.0,0.00013699,2]
[346689877,1735186240928,-500.0,0.00013699,2]
[346689878,1735186240938,-500.0,0.00013699,2]
[346689879,1735186240948,-500.0,0.00013699,2]
[346689880,1735186240957,-500.0,0.00013699,2]
[346689881,1735186240967,-404.98951795,0.00013699,2]
[346689882,1735186240976,-500.0,0.00013699,2]
[346689883,1735186240986,-500.0,0.00013699,2]
[346689884,1735186240996,-500.0,0.00013699,2]
[346689885,1735186241006,-500.0,0.00013699,2]
[346689886,1735186241016,-500.0,0.00013699,2]
[346689887,1735186241026,-500.0,0.00013699,2]
[346689888,1735186241035,-151.0,0.000137,2]
[346689889,1735186241045,-744.1,0.00013739,2]
[346689890,1735186241054,-500.0,0.00013739,2]
[346689891,1735186241064,-500.0,0.00013739,2]
[346689892,1735186241073,-353.42817976,0.0001377,2]
[346689893,1735186241082,-500.0,0.00013932,2]
[346689894,1735186241092,-151.0,0.00013933,2]
[346689895,1735186241102,-151.0,0.00013933,2]
[346689896,1735186241111,-151.0,0.00013933,2]
[346689897,1735186241120,-151.0,0.00013933,2]
[346689898,1735186241129,-2399.72,0.00013933,2]
[346689899,1735186241139,-2955.44,0.00013933,2]
[346689900,1735186241148,-500.0,0.00013934,2]
[346689901,1735186241158,-400.0,0.00013973,2]
[346689902,1735186241167,-449.05884387,0.00013999,2]
[346689903,1735186241177,-1287.78,0.00014,2]
[346689904,1735186241186,-14163.8358344,0.00014,2]
[346689905,1735186241202,-482.004,0.00014,2]
[346689964,1735186246802,-446.70435285,0.0001386,2]
[346689965,1735186246813,-36.28564715,0.00014,2]
[346689966,1735187304794,-251.0096088,0.00010328,2]
[346689967,1735187304819,-530.33780333,0.00010607,2]
[346689970,1735187316954,1000.0,0.0001,2]
[346690029,1735187431845,-495.455,0.00010524,2]
[346690036,1735187431900,-6836.32246436,0.00010524,2]
[346690037,1735187431910,-504.19627987,0.00010607,2]
[346690038,1735187431919,-300.0,0.00010624,2]
[346690040,1735187431929,-9230.18873733,0.00010625,2]
[346690042,1735187431941,-6559.04200604,0.00010625,2]
[346690043,1735187431956,-421.49265646,0.00010625,2]
[346690049,1735187437995,-803.83114017,0.00010625,2]
[346690050,1735187438006,-349.51571483,0.0001074,2]
[346690051,1735187438017,-1024.24117407,0.0001074,2]
[346690053,1735187438027,-475.75882593,0.00010771,2]
[346690055,1735187438038,-24.24117407,0.00010771,2]
[346690056,1735187438047,-422.32,0.00010771,2]
[346690057,1735187438058,-500.0,0.00010771,2]
[346690059,1735187438067,-1041.52,0.00010771,2]
[346690061,1735187438079,-250.0,0.00010772,2]
[346690062,1735187438088,-2000.0,0.00010998,2]
[346690063,1735187438097,-500.0,0.00010999,2]
[346690064,1735187438106,-500.0,0.00011045,2]
[346690065,1735187438116,-500.0,0.00011045,2]
[346690066,1735187438125,-1041.52,0.00011045,2]
[346690067,1735187438135,-2000.0,0.00011272,2]
[346690068,1735187438145,-500.0,0.00011273,2]
[346690069,1735187438155,-500.0,0.00011319,2]
[346690070,1735187438165,-486.39,0.00011319,2]
[346690071,1735187438174,-1041.52,0.00011319,2]
[346690072,1735187438183,-2000.0,0.00011546,2]
[346690073,1735187438192,-500.0,0.00011547,2]
[346690074,1735187438202,-500.0,0.00011593,2]
[346690075,1735187438211,-1041.52,0.00011593,2]
[346690076,1735187438221,-420.0,0.00011687,2]
[346690077,1735187438232,-2000.0,0.0001182,2]
[346690078,1735187438243,-1477.72,0.0001182,2]
[346690079,1735187438253,-500.0,0.0001182,2]
[346690080,1735187438263,-500.0,0.00011821,2]
[346690081,1735187438272,-500.0,0.00011867,2]
[346690082,1735187438282,-1041.52,0.00011867,2]
[346690083,1735187438292,-889.85882593,0.00012,2]
[346690099,1735187439967,-1000.0,0.00012,2]
[346690100,1735187440024,-2139.55820823,0.00012,2]
[346690101,1735187440033,-2000.0,0.00012094,2]
[346690102,1735187440043,-1477.72,0.00012094,2]
[346690103,1735187440053,-500.0,0.00012094,2]
[346690104,1735187440062,-500.56020263,0.00012095,2]
[346690105,1735187440073,-500.0,0.00012141,2]
[346690106,1735187440084,-112.97935001,0.00012141,2]
[346690107,1735187440095,-928.54064999,0.00012141,2]
[346690108,1735187440104,-25.96687761,0.00012368,2]
[346690110,1735187440115,-1073.2403397,0.00012368,2]
[346690111,1735187440127,-900.79278269,0.00012368,2]
[346690112,1735187440136,-51.07605121,0.00012368,2]
[346690129,1735187442994,-1426.64394879,0.00012368,2]
[346690130,1735187443003,-139.90556627,0.00012368,2]
[346690131,1735187443015,-360.09443373,0.00012368,2]
[346690132,1735187443024,-139.90229877,0.00012415,2]
[346690149,1735187994100,450.0,0.00023,120]
[346690151,1735188513173,-448.17804853,0.00010604,2]
[346690152,1735188513200,-500.0,0.00010625,2]
[346690153,1735188513226,-168.3273761,0.00010675,2]
[346690154,1735188513257,-131.6726239,0.00010675,2]
[346690155,1735188513283,-300.0,0.00010675,2]
[346690156,1735188513310,-500.0,0.00010676,2]
[346690157,1735188513337,-0.28102393,0.00010676,2]
[346690168,1735188632160,-300.0,0.00010675,2]
[346690169,1735188632171,-300.0,0.00010675,2]
[346690170,1735188632180,-781.14,0.00010676,2]
[346690171,1735188632190,-20914.75960998,0.00010676,2]
[346690172,1735188632203,-3984.95936609,0.00010676,2]
[346690173,1735188632212,-233.3633445,0.00010704,2]
[346690174,1735188632222,-824.0,0.00010771,2]
[346690175,1735188632231,-190.22731647,0.00010839,2]
[346690176,1735188632241,-500.0,0.0001095,2]
[346690177,1735188632251,-781.14,0.0001095,2]
[346690178,1735188632260,-2551.7389929,0.00010959,2]
[346690179,1735188632269,-500.0,0.00011224,2]
[346690180,1735188632279,-781.14,0.00011224,2]
[346690181,1735188632288,-500.0,0.00011498,2]
[346690182,1735188632298,-781.14,0.00011498,2]
[346690183,1735188632307,-500.0,0.00011592,2]
[346690184,1735188632316,-1127.00947987,0.00011592,2]
[346690185,1735188632347,-872.99052013,0.00011592,2]
[346690186,1735188632356,-1293.01,0.00011592,2]
[346690187,1735188632366,-500.0,0.00011592,2]
[346690188,1735188632376,-500.0,0.00011772,2]
[346690189,1735188632386,-781.14,0.00011772,2]
[346690190,1735188632395,-500.0,0.00011865,2]
[346690191,1735188632405,-500.0,0.00011866,2]
[346690192,1735188632414,-2000.0,0.00011866,2]
[346690193,1735188632424,-1293.01,0.00011866,2]
[346690194,1735188632433,-500.0,0.00012046,2]
[346690195,1735188632443,-781.14,0.00012046,2]
[346690196,1735188632452,-500.0,0.0001214,2]
[346690197,1735188632462,-2000.0,0.0001214,2]
[346690198,1735188632471,-1293.01,0.0001214,2]
[346690199,1735188632480,-244.0,0.0001231,2]
[346690200,1735188632489,-522.51901631,0.00012313,2]
[346690201,1735188632499,-9416.06595531,0.00012314,2]
[346690202,1735188632508,-500.0,0.0001232,2]
[346690203,1735188632517,-781.14,0.0001232,2]
[346690204,1735188632527,-632.41982276,0.00012413,2]
[346690205,1735188632537,-11400.26289481,0.00012413,2]
[346690211,1735188638128,-158.55690373,0.00012313,2]
[346690212,1735188638137,-500.0,0.00012313,2]
[346690213,1735188638147,-500.0,0.00012313,2]
[346690214,1735188638157,-583.42147671,0.00012313,2]
[346690215,1735188638166,-5150.88161956,0.00012413,2]
[346690231,1735188643128,-4028.08208096,0.00012413,2]
[346690244,1735188765765,814.9,0.00018176,30]
[346690246,1735189188543,1625.2283844,9.71e-05,2]
[346690253,1735189770500,15619.6509343,9.646e-05,2]
[346690254,1735189770545,9280.3490657,9.646e-05,2]
[346690255,1735189771729,1224.3460663,9.549e-05,2]
[346690256,1735189808384,-300.0,0.00010567,2]
[346690257,1735189808413,-297.69186032,0.00010568,2]
[346690296,1735189832355,-331.45556365,0.00010568,2]
[346690298,1735189832365,-500.0,0.00010568,2]
[346690300,1735189832375,-500.0,0.00010568,2]
[346690302,1735189832386,-500.0,0.00010568,2]
[346690304,1735189832395,-500.0,0.00010568,2]
[346690306,1735189832405,-500.0,0.00010568,2]
[346690308,1735189832414,-500.0,0.00010568,2]
[346690310,1735189832423,-500.0,0.00010568,2]
[346690312,1735189832436,-500.0,0.00010568,2]
[346690314,1735189832446,-500.0,0.00010568,2]
[346690316,1735189832456,-500.0,0.00010568,2]
[346690318,1735189832466,-500.83277182,0.00010568,2]
[346690320,1735189832475,-500.0,0.00010568,2]
[346690322,1735189832484,-500.0,0.00010568,2]
[346690324,1735189832493,-500.0,0.00010568,2]
[346690326,1735189832503,-500.0,0.00010568,2]
[346690328,1735189832512,-500.0,0.00010568,2]
[346690330,1735189832525,-197.29548316,0.00010568,2]
[346690333,1735189832535,-500.0,0.00010568,2]
[346690334,1735189832545,-500.0,0.00010568,2]
[346690337,1735189832556,-500.0,0.00010568,2]
[346690339,1735189832565,-500.0,0.00010568,2]
[346690341,1735189832574,-502.49106974,0.00010568,2]
[346690343,1735189832583,-500.0,0.00010568,2]
[346690345,1735189832593,-500.0,0.00010568,2]
[346690347,1735189832603,-527.5,0.00010568,2]
[346690349,1735189832612,-500.0,0.00010568,2]
[346690351,1735189832622,-500.86396231,0.00010568,2]
[346690353,1735189832631,-500.0,0.00010568,2]
[346690354,1735189832641,-500.0,0.00010568,2]
[346690356,1735189832650,-500.0,0.00010568,2]
[346690358,1735189832660,-500.0,0.00010568,2]
[346690360,1735189832669,-502.44280112,0.00010568,2]
[346690361,1735189832678,-500.39723739,0.00010568,2]
[346690362,1735189832687,-500.0,0.00010568,2]
[346690363,1735189832696,-500.0,0.00010568,2]
[346690364,1735189832705,-500.0,0.00010568,2]
[346690365,1735189832714,-500.0,0.00010568,2]
[346690366,1735189832723,-500.0,0.00010568,2]
[346690367,1735189832732,-500.0,0.00010568,2]
[346690368,1735189832741,-500.0,0.00010568,2]
[346690369,1735189832750,-500.0,0.00010568,2]
[346690370,1735189832759,-500.0,0.00010568,2]
[346690371,1735189832768,-500.0,0.00010568,2]
[346690372,1735189832777,-500.0,0.00010568,2]
[346690373,1735189832786,-500.0,0.00010568,2]
[346690374,1735189832796,-500.0,0.00010568,2]
[346690375,1735189832804,-500.0,0.00010568,2]
[346690376,1735189832814,-500.0,0.00010568,2]
[346690377,1735189832823,-500.0,0.00010568,2]
[346690378,1735189832833,-500.0,0.00010568,2]
[346690379,1735189832842,-500.0,0.00010568,2]
[346690380,1735189832851,-500.0,0.00010568,2]
[346690381,1735189832861,-500.0,0.00010568,2]
[346690383,1735189832870,-500.0,0.00010568,2]
[346690386,1735189832880,-500.0,0.00010568,2]
[346690387,1735189832890,-500.0,0.00010568,2]
[346690390,1735189832900,-500.0,0.00010568,2]
[346690392,1735189832909,-500.0,0.00010568,2]
[346690394,1735189832919,-500.0,0.00010568,2]
[346690395,1735189832928,-500.0,0.00010568,2]
[346690397,1735189832939,-500.0,0.00010568,2]
[346690399,1735189832948,-500.0,0.00010568,2]
[346690401,1735189832957,-500.0,0.00010568,2]
[346690404,1735189832967,-500.0,0.00010568,2]
[346690406,1735189832978,-500.0,0.00010568,2]
[346690407,1735189832987,-203.53211893,0.00010568,2]
[346690409,1735189832996,-1131.38,0.00010568,2]
[346690411,1735189833006,-500.0,0.00010568,2]
[346690414,1735189833015,-500.0,0.00010568,2]
[346690415,1735189833025,-500.0,0.00010568,2]
[346690418,1735189833035,-553.31,0.00010568,2]
[346690420,1735189833047,-500.0,0.00010568,2]
[346690422,1735189833057,-500.0,0.00010568,2]
[346690424,1735189833067,-500.0,0.00010568,2]
[346690426,1735189833076,-500.0,0.00010568,2]
[346690428,1735189833088,-500.0,0.00010568,2]
[346690430,1735189833098,-575.85214423,0.00010676,2]
[346690432,1735189833108,-563.16787645,0.00010676,2]
[346690434,1735189833118,-500.0,0.00010676,2]
[346690436,1735189833128,-500.0,0.00010676,2]
[346690438,1735189833140,-201.16247913,0.00010676,2]
[346690440,1735189833150,-500.0,0.00010676,2]
[346690442,1735189833161,-500.0,0.00010676,2]
[346690444,1735189833171,-500.0,0.00010676,2]
[346690446,1735189833181,-237.27006419,0.00010676,2]
[346690448,1735189833192,-500.0,0.00010676,2]
[346690450,1735189833202,-500.0,0.00010676,2]
[346690452,1735189833212,-500.0,0.0001077,2]
[346690454,1735189833223,-500.0,0.0001077,2]
[346690456,1735189833233,-500.0,0.0001077,2]
[346690458,1735189833242,-500.0,0.0001077,2]
[346690460,1735189833253,-500.0,0.0001077,2]
[346690462,1735189833263,-500.0,0.0001077,2]
[346690464,1735189833272,-500.0,0.0001077,2]
[346690466,1735189833282,-500.0,0.0001077,2]
[346690468,1735189833292,-500.0,0.00010842,2]
[346690470,1735189833302,-157.92,0.00010842,2]
[346690472,1735189833311,-195.29,0.00010842,2]
[346690474,1735189833321,-1131.38,0.00010842,2]
[346690476,1735189833331,-553.31,0.00010842,2]
[346690478,1735189833341,-618.73,0.00010842,2]
[346690480,1735189833350,-500.0,0.0001095,2]
[346690481,1735189833360,-2000.0,0.00010958,2]
[346690482,1735189833370,-2000.0,0.00010958,2]
[346690483,1735189833380,-151.0,0.00010959,2]
[346690484,1735189833391,-1795.7903319,0.00010959,2]
[346690485,1735189833401,-500.0,0.00011116,2]
[346690487,1735189833410,-2000.0,0.00011116,2]
[346690488,1735189833420,-1131.38,0.00011116,2]
[346690489,1735189833429,-96.66557699,0.00011116,2]
[346690503,1735189840468,-175.93571963,0.00010957,2]
[346690504,1735189840477,-284.78216107,0.00010957,2]
[346690505,1735189840487,-456.64442301,0.00011116,2]
[346690506,1735189840496,-126.33769629,0.00011129,2]
[346690507,1735189840508,-189.8722151,0.00011129,2]
[346690508,1735189840521,-104.3224849,0.00011129,2]
[346690509,1735189840533,-854.096,0.00011129,2]
[346690516,1735189843263,-16164.02444196,0.00011129,2]
[346690517,1735189843376,-4157.20039963,0.00011129,2]
[346690518,1735189843386,-1224.8593231,0.0001113,2]
[346690520,1735189843394,-500.0,0.00011224,2]
[346690522,1735189843404,-500.0,0.0001139,2]
[346690524,1735189843413,-2000.0,0.0001139,2]
[346690525,1735189843422,-1131.38,0.0001139,2]
[346690526,1735189843431,-553.31,0.0001139,2]
[346690528,1735189843440,-500.0,0.00011498,2]
[346690530,1735189843449,-2000.0,0.000115,2]
[346690531,1735189843459,-357.8579733,0.00011592,2]
[346690532,1735189843467,-500.0,0.00011592,2]
[346690533,1735189843477,-500.0,0.00011592,2]
[346690534,1735189843486,-500.0,0.00011592,2]
[346690535,1735189843495,-500.0,0.00011664,2]
[346690536,1735189843504,-2000.0,0.00011664,2]
[346690537,1735189843514,-1131.38,0.00011664,2]
[346690538,1735189843526,-553.31,0.00011664,2]
[346690539,1735189843535,-217.9814227,0.00011753,2]
[346690540,1735189843544,-153.574126,0.00011753,2]
[346690541,1735189843554,-353.1148479,0.00011753,2]
[346690542,1735189843565,-500.0,0.00011772,2]
[346690543,1735189843574,-327.07308,0.00011938,2]
[346690544,1735189843583,-327.07308,0.00011938,2]
[346690545,1735189843594,-151.0,0.00011938,2]
[346690546,1735189843604,-533.52770123,0.00011938,2]
[346690547,1735189843613,-796.74350536,0.00011938,2]
[346690548,1735189843624,-1131.38,0.00011938,2]
[346690549,1735189843633,-553.31,0.00011938,2]
[346690550,1735189843643,-1700.008547,0.00012,2]
[346690551,1735189843652,-930.88281197,0.00012,3]
[346690552,1735189843664,-7792.85660546,0.00012,3]
[346690553,1735189843674,-500.0,0.00012046,2]
[346690554,1735189843683,-1131.38,0.00012212,2]
[346690555,1735189843698,-553.31,0.00012212,2]
[346690556,1735189843708,-989.160796,0.00012244,2]
[346690557,1735189843717,-151.0,0.00012244,2]
[346690558,1735189843727,-500.0,0.0001232,2]
[346690559,1735189843737,-8537.54950275,0.00012326,2]
[346690578,1735189987214,300.0,0.000123,5]
[346690579,1735190005490,300.0,0.000123,5]
[346690583,1735190747178,9495.304868,9.919e-05,2]
[346690584,1735190747216,7721.0319834,9.919e-05,2]
[346690586,1735190792328,178.33740487,9.957e-05,2]
[346690587,1735190807232,178.33740487,9.957e-05,2]
[346690588,1735190822050,178.33740487,9.957e-05,2]
[346690589,1735190836857,178.33740487,9.957e-05,2]
[346690590,1735190852220,178.33740487,9.957e-05,2]
[346690591,1735190867079,178.33740487,9.957e-05,2]
[346690592,1735190882121,178.33740487,9.957e-05,2]
[346690594,1735190897541,178.33740487,9.957e-05,2]
[346690596,1735190912434,178.33740487,9.957e-05,2]
[346690600,1735190927291,178.33740487,9.957e-05,2]
[346690601,1735190942573,178.33740487,9.957e-05,2]
[346690602,1735190958409,178.33740487,9.957e-05,2]
[346690603,1735190966538,178.33740487,9.957e-05,2]
[346690604,1735190991142,-178.33740487,0.0001016,2]
[346690606,1735190991169,-178.33740487,0.00010263,2]